fUST/lending_fUST_20250112
["ID","MTS","AMOUNT","RATE_DAILY","PERIOD"]
[348546100,1736613048342,-160.93468141,0.0002305,5]
[348546101,1736613048351,-160.0,0.0002305,5]
[348546102,1736613048361,-11758.15099754,0.00023054,2]
[348546103,1736613048370,-171.307544,0.00023089,2]
[348546104,1736613048380,-10608.84,0.000231,14]
[348546105,1736613048389,-3976.38,0.000231,14]
[348546106,1736613048399,-11949.12,0.000231,2]
[348546107,1736613048410,-15078.99136746,0.00023193,14]
[348546108,1736613048419,-2000.0,0.000232,2]
[348546109,1736613048429,-200.92928995,0.000232,2]
[348546110,1736613048438,-150.21,0.000232,2]
[348546111,1736613048447,-150.21,0.000232,2]
[348546112,1736613048457,-150.26,0.000232,2]
[348546113,1736613048466,-500.0,0.000232,2]
[348546114,1736613048476,-150.26,0.000232,2]
[348546115,1736613048486,-500.0,0.00023287,2]
[348546116,1736613048495,-4553.65,0.00023287,3]
[348546117,1736613048505,-500.0,0.00023287,3]
[348546118,1736613048515,-500.0,0.00023287,3]
[348546119,1736613048525,-739.72,0.00023287,3]
[348546120,1736613048534,-526.04,0.00023287,3]
[348546121,1736613048544,-2877.5,0.00023287,3]
[348546122,1736613048553,-1484.87,0.00023287,3]
[348546123,1736613048562,-500.0,0.00023287,3]
[348546124,1736613048572,-500.0,0.00023287,3]
[348546125,1736613048581,-1166.83,0.00023287,3]
[348546126,1736613048591,-500.0,0.00023287,3]
[348546127,1736613048601,-618.88,0.00023287,3]
[348546128,1736613048610,-555.05,0.00023287,3]
[348546129,1736613048619,-500.0,0.00023287,3]
[348546130,1736613048629,-585.97,0.00023287,3]
[348546131,1736613048638,-366.52200354,0.00023287,3]
[348546132,1736613048648,-501.35714145,0.00023287,3]
[348546133,1736613048659,-462.82878103,0.00023287,3]
[348546134,1736613048668,-500.0,0.00023287,3]
[348546135,1736613048677,-500.0,0.00023287,3]
[348546136,1736613048687,-500.0,0.00023287,3]
[348546137,1736613048697,-219.62429504,0.00023287,3]
[348546138,1736613048706,-500.0,0.00023287,3]
[348546139,1736613048716,-561.35,0.00023287,3]
[348546140,1736613048726,-500.0,0.00023287,3]
[348546141,1736613048735,-500.0,0.00023287,3]
[348546142,1736613048745,-915.52,0.00023287,3]
[348546143,1736613048755,-1072.97,0.00023287,3]
[348546144,1736613048764,-1271.1,0.00023287,3]
[348546145,1736613048774,-500.0,0.00023287,3]
[348546146,1736613048783,-1032.13,0.00023287,3]
[348546147,1736613048793,-500.0,0.00023287,3]
[348546148,1736613048802,-956.03,0.00023287,3]
[348546149,1736613048812,-27884.59602003,0.00023287,2]
[348546150,1736613048855,-4991.00397997,0.00023287,2]
[348546151,1736613048864,-500.0,0.00023287,3]
[348546152,1736613048874,-2476.56,0.00023287,3]
[348546153,1736613048883,-610.34,0.00023287,3]
[348546154,1736613048893,-795.95,0.00023287,3]
[348546155,1736613048903,-500.0,0.00023287,3]
[348546156,1736613048913,-500.0,0.00023287,3]
[348546157,1736613048922,-905.63,0.00023287,3]
[348546158,1736613048932,-500.0,0.00023287,3]
[348546159,1736613048941,-113.4496496,0.00023287,3]
[348546160,1736613048958,-151.0,0.000231,7]
[348546161,1736613048968,-527.9503504,0.00023287,3]
[348546162,1736613048977,-1035.73,0.00023287,3]
[348546163,1736613048987,-500.0,0.00023287,3]
[348546164,1736613048997,-500.0,0.00023287,3]
[348546165,1736613049008,-504.19553901,0.00023287,3]
[348546166,1736613049018,-1542.49,0.00023287,3]
[348546167,1736613049028,-500.0,0.00023287,3]
[348546168,1736613049038,-1045.59,0.00023287,3]
[348546169,1736613049048,-500.0,0.00023287,3]
[348546170,1736613049057,-500.0,0.00023287,3]
[348546171,1736613049066,-500.0,0.00023287,3]
[348546172,1736613049077,-1672.98,0.00023287,3]
[348546173,1736613049086,-909.33,0.00023287,3]
[348546174,1736613049096,-953.50411059,0.00023287,3]
[348546178,1736613614417,27318.0,0.00025,120]
[348546179,1736613921828,172.614416,0.00013973,2]
[348546181,1736613936130,-172.614416,0.00020447,2]
[348546182,1736613936152,-137.85242408,0.00020622,2]
[348546214,1736614232632,-26.71561392,0.00020622,2]
[348546216,1736614232643,-250.0,0.00020916,2]
[348546218,1736614232652,-467.62963057,0.00021817,2]
[348546220,1736614232662,-300.0,0.00021915,2]
[348546222,1736614232672,-154.04,0.00021916,2]
[348546224,1736614232682,-546.17985283,0.00021916,2]
[348546226,1736614232691,-500.0,0.00021916,2]
[348546227,1736614232701,-198.37153643,0.00021916,2]
[348546229,1736614232714,-500.0,0.00021916,2]
[348546231,1736614232724,-440.48293363,0.00021916,2]
[348546232,1736614232734,-544.7236262,0.00021916,2]
[348546233,1736614232744,-500.0,0.00021916,2]
[348546234,1736614232754,-174.917,0.00021916,2]
[348546235,1736614232763,-500.0,0.00021917,3]
[348546236,1736614232773,-5325.64,0.00021917,3]
[348546237,1736614232782,-804.15,0.00021917,3]
[348546238,1736614232791,-500.0,0.00021917,3]
[348546239,1736614232800,-895.95,0.00021917,3]
[348546240,1736614232809,-500.0,0.00021917,3]
[348546241,1736614232819,-500.0,0.00021917,3]
[348546242,1736614232828,-500.0,0.00021917,3]
[348546243,1736614232838,-500.0,0.00021917,3]
[348546244,1736614232847,-500.0,0.00021917,3]
[348546245,1736614232857,-500.0,0.00021917,3]
[348546246,1736614232867,-500.0,0.00021917,3]
[348546247,1736614232877,-500.0,0.00021917,3]
[348546248,1736614232888,-500.0,0.00021917,3]
[348546249,1736614232899,-278.76127197,0.00021917,2]
[348546250,1736614232908,-500.0,0.00021917,3]
[348546251,1736614232918,-500.0,0.00021917,3]
[348546252,1736614232927,-500.0,0.00021917,3]
[348546253,1736614232936,-500.0,0.00021917,3]
[348546254,1736614232946,-500.0,0.00021917,3]
[348546255,1736614232955,-500.0,0.00021917,3]
[348546256,1736614232965,-500.0,0.00021917,3]
[348546257,1736614232974,-500.0,0.00021917,3]
[348546258,1736614232983,-974.16,0.00021917,3]
[348546259,1736614232993,-500.0,0.00021917,3]
[348546260,1736614233002,-485.90280416,0.00021917,3]
[348546261,1736614233022,-14.09719584,0.00021917,3]
[348546262,1736614233031,-500.0,0.00021917,3]
[348546263,1736614233041,-794.93,0.00021917,3]
[348546264,1736614233050,-2934.88949185,0.00021917,2]
[348546265,1736614233062,-731.2057859,0.00021917,2]
[348546515,1736614240607,-3729.49922104,0.00021917,2]
[348547059,1736614246587,-168.21841569,0.00021817,2]
[348547062,1736614246597,-13018.36823967,0.00021917,2]
[348547068,1736614246643,-4503.39726154,0.00021917,2]
[348547070,1736614246652,-2138.26,0.00021917,3]
[348547072,1736614246661,-989.18520732,0.00021917,3]
[348547108,1736614735545,590.37645046,0.00019817,2]
[348547109,1736614737427,166.643,0.0002,2]
[348547112,1736614992296,185.448433,0.00013973,2]
[348547113,1736615037190,393.58430031,0.00019817,2]
[348547114,1736615158107,-185.448433,0.00020447,2]
[348547115,1736615158128,-557.81274594,0.000214,2]
[348547116,1736615338317,262.38953354,0.000193,2]
[348547173,1736615433047,-2442.18725406,0.000214,2]
[348547175,1736615433057,-300.0,0.00021409,2]
[348547178,1736615433067,-3000.0,0.0002141,2]
[348547180,1736615433081,-1238.93359242,0.0002141,2]
[348547182,1736615433091,-3000.0,0.0002142,2]
[348547183,1736615433101,-3000.0,0.0002143,2]
[348547185,1736615433111,-3000.0,0.0002144,2]
[348547187,1736615433121,-3000.0,0.0002145,2]
[348547189,1736615433131,-3000.0,0.0002146,2]
[348547191,1736615433140,-3000.0,0.0002147,2]
[348547194,1736615433151,-3000.0,0.0002148,2]
[348547197,1736615433160,-206.595,0.0002148,2]
[348547200,1736615433170,-3000.0,0.0002149,2]
[348547202,1736615433179,-3000.0,0.000215,2]
[348547204,1736615433188,-3000.0,0.0002151,2]
[348547206,1736615433198,-3000.0,0.0002152,2]
[348547208,1736615433207,-3000.0,0.0002153,2]
[348547210,1736615433217,-3000.0,0.0002154,2]
[348547212,1736615433226,-3000.0,0.0002155,2]
[348547213,1736615433235,-3000.0,0.0002156,2]
[348547215,1736615433245,-500.0,0.00021561,2]
[348547217,1736615433254,-500.0,0.00021561,2]
[348547219,1736615433264,-500.0,0.00021561,2]
[348547221,1736615433274,-256.31990274,0.00021561,2]
[348547223,1736615433284,-621.47251154,0.00021561,2]
[348547225,1736615433293,-500.0,0.00021561,2]
[348547227,1736615433303,-500.0,0.00021561,2]
[348547228,1736615433313,-273.23936843,0.00021561,2]
[348547229,1736615433323,-3000.0,0.0002157,2]
[348547231,1736615433332,-3000.0,0.0002158,2]
[348547233,1736615433341,-3000.0,0.0002159,2]
[348547235,1736615433351,-3000.0,0.000216,2]
[348547237,1736615433361,-5848.820487,0.0002161,2]
[348547239,1736615433371,-11164.41555155,0.00021655,2]
[348547241,1736615433381,-1238.93359241,0.00021709,2]
[348547243,1736615433390,-174.342134,0.00021898,2]
[348547245,1736615433400,-300.0,0.000219,9]
[348547246,1736615433410,-579.14761782,0.00021916,2]
[348547249,1736615433421,-170.14939805,0.00021916,2]
[348547251,1736615433431,-205.42571735,0.00021916,2]
[348547253,1736615433442,-499.0,0.00021916,2]
[348547255,1736615433452,-3092.19479268,0.00021917,3]
[348547257,1736615433462,-500.0,0.00021917,3]
[348547259,1736615433471,-598.11,0.00021917,3]
[348547261,1736615433481,-500.0,0.00021917,3]
[348547263,1736615433491,-500.0,0.00021917,3]
[348547265,1736615433500,-575.62,0.00021917,3]
[348547267,1736615433510,-500.0,0.00021917,3]
[348547269,1736615433520,-500.0,0.00021917,3]
[348547271,1736615433530,-500.0,0.00021917,3]
[348547273,1736615433540,-221.76154267,0.00021917,3]
[348547274,1736615433550,-702.77,0.00021917,3]
[348547276,1736615433560,-515.78573004,0.00021917,3]
[348547278,1736615433570,-500.0,0.00021917,3]
[348547280,1736615433580,-500.0,0.00021917,3]
[348547282,1736615433589,-879.45,0.00021917,3]
[348547284,1736615433599,-500.0,0.00021917,3]
[348547286,1736615433609,-500.0,0.00021917,3]
[348547288,1736615433618,-500.0,0.00021917,3]
[348547290,1736615433628,-415.71784471,0.00021917,3]
[348547292,1736615433638,-500.0,0.00021917,3]
[348547294,1736615433648,-2719.84,0.00021917,3]
[348547296,1736615433657,-500.0,0.00021917,3]
[348547298,1736615433666,-500.0,0.00021917,3]
[348547300,1736615433676,-500.0,0.00021917,3]
[348547302,1736615433692,-500.0,0.00021917,3]
[348547304,1736615433702,-500.0,0.00021917,3]
[348547306,1736615433711,-500.0,0.00021917,3]
[348547308,1736615433721,-500.0,0.00021917,3]
[348547310,1736615433730,-1426.15,0.00021917,3]
[348547312,1736615433739,-500.0,0.00021917,3]
[348547313,1736615433748,-647.24,0.00021917,3]
[348547315,1736615433757,-878.75,0.00021917,3]
[348547317,1736615433767,-500.0,0.00021917,3]
[348547319,1736615433777,-500.0,0.00021917,3]
[348547322,1736615433787,-500.0,0.00021917,3]
[348547324,1736615433797,-500.0,0.00021917,3]
[348547326,1736615433806,-500.0,0.00021917,3]
[348547328,1736615433816,-500.0,0.00021917,3]
[348547330,1736615433826,-994.37,0.00021917,3]
[348547332,1736615433835,-500.0,0.00021917,3]
[348547334,1736615433845,-808.11,0.00021917,3]
[348547336,1736615433854,-500.0,0.00021917,3]
[348547338,1736615433863,-500.0,0.00021917,3]
[348547340,1736615433873,-500.0,0.00021917,3]
[348547342,1736615433883,-24012.04,0.00021917,2]
[348547344,1736615433892,-760.06,0.00021917,3]
[348547346,1736615433902,-2342.71,0.00021917,3]
[348547348,1736615433911,-500.0,0.00021917,3]
[348547350,1736615433921,-500.0,0.00021917,3]
[348547352,1736615433931,-500.0,0.00021917,3]
[348547354,1736615433941,-617.8,0.00021917,3]
[348547356,1736615433950,-500.0,0.00021917,3]
[348547358,1736615433959,-791.48,0.00021917,3]
[348547360,1736615433969,-500.0,0.00021917,3]
[348547362,1736615433978,-500.0,0.00021917,3]
[348547364,1736615433988,-500.0,0.00021917,3]
[348547366,1736615433997,-810.11,0.00021917,3]
[348547368,1736615434007,-500.0,0.00021917,3]
[348547370,1736615434016,-500.0,0.00021917,3]
[348547372,1736615434026,-1353.49,0.00021917,3]
[348547374,1736615434035,-500.0,0.00021917,3]
[348547376,1736615434044,-500.0,0.00021917,3]
[348547378,1736615434054,-848.34,0.00021917,3]
[348547380,1736615434063,-500.0,0.00021917,3]
[348547382,1736615434074,-2133.67,0.00021917,3]
[348547384,1736615434084,-501.56879123,0.00021917,3]
[348547386,1736615434093,-726.1,0.00021917,3]
[348547388,1736615434102,-500.0,0.00021917,3]
[348547389,1736615434115,-500.0,0.00021917,3]
[348547391,1736615434124,-500.0,0.00021917,3]
[348547393,1736615434134,-500.0,0.00021917,3]
[348547395,1736615434143,-1580.02,0.00021917,3]
[348547398,1736615434154,-868.93,0.00021917,3]
[348547400,1736615434165,-500.0,0.00021917,3]
[348547402,1736615434174,-500.0,0.00021917,3]
[348547404,1736615434184,-648.69,0.00021917,3]
[348547406,1736615434193,-800.16,0.00021917,3]
[348547408,1736615434202,-817.12,0.00021917,3]
[348547409,1736615434212,-1448.93,0.00021917,3]
[348547412,1736615434221,-21201.11,0.00021917,3]
[348547414,1736615434231,-500.0,0.00021917,3]
[348547415,1736615434241,-5431.71,0.00021917,3]
[348547417,1736615434250,-500.0,0.00021917,3]
[348547419,1736615434260,-4469.09,0.00021917,3]
[348547421,1736615434269,-150.0,0.00021944,2]
[348547423,1736615434279,-535.0,0.00021944,2]
[348547424,1736615434289,-2086.0,0.00021944,2]
[348547425,1736615434299,-2317.0,0.00021944,2]
[348547426,1736615434309,-394.0,0.00021944,2]
[348547427,1736615434319,-155.549415,0.00021945,2]
[348547428,1736615434328,-1238.93359241,0.00022007,2]
[348547429,1736615434338,-329.326,0.0002213,2]
[348547430,1736615434348,-4081.38,0.00022191,3]
[348547431,1736615434358,-500.0,0.00022191,3]
[348547432,1736615434367,-384.04002935,0.00022191,3]
[348547433,1736615434377,-500.0,0.00022191,3]
[348547434,1736615434386,-575.62,0.00022191,3]
[348547435,1736615434396,-500.0,0.00022191,3]
[348547436,1736615434405,-500.0,0.00022191,3]
[348547437,1736615434415,-500.0,0.00022191,3]
[348547438,1736615434424,-702.77,0.00022191,3]
[348547439,1736615434434,-500.0,0.00022191,3]
[348547440,1736615434443,-500.0,0.00022191,3]
[348547441,1736615434452,-879.45,0.00022191,3]
[348547442,1736615434462,-500.0,0.00022191,3]
[348547443,1736615434471,-500.0,0.00022191,3]
[348547444,1736615434480,-500.0,0.00022191,3]
[348547445,1736615434490,-500.0,0.00022191,3]
[348547446,1736615434499,-2719.84,0.00022191,3]
[348547448,1736615434508,-500.0,0.00022191,3]
[348547450,1736615434518,-500.0,0.00022191,3]
[348547452,1736615434529,-500.0,0.00022191,3]
[348547454,1736615434538,-500.0,0.00022191,3]
[348547456,1736615434547,-500.0,0.00022191,3]
[348547458,1736615434557,-500.0,0.00022191,3]
[348547460,1736615434566,-1426.15,0.00022191,3]
[348547462,1736615434576,-500.0,0.00022191,3]
[348547464,1736615434585,-647.24,0.00022191,3]
[348547466,1736615434595,-878.75,0.00022191,3]
[348547468,1736615434605,-500.0,0.00022191,3]
[348547470,1736615434614,-994.37,0.00022191,3]
[348547472,1736615434624,-500.0,0.00022191,3]
[348547474,1736615434633,-808.11,0.00022191,3]
[348547476,1736615434642,-500.0,0.00022191,3]
[348547478,1736615434652,-325.29440069,0.00022191,3]
[348547480,1736615434661,-500.0,0.00022191,3]
[348547482,1736615434670,-16351.46737713,0.00022191,2]
[348547753,1736615440817,-679.14,0.00021917,3]
[348547755,1736615440827,-7660.57262287,0.00022191,2]
[348547757,1736615440836,-760.06,0.00022191,3]
[348547759,1736615440846,-2342.71,0.00022191,3]
[348547761,1736615440855,-500.0,0.00022191,3]
[348547763,1736615440864,-500.0,0.00022191,3]
[348547765,1736615440874,-500.0,0.00022191,3]
[348547767,1736615440883,-617.8,0.00022191,3]
[348547769,1736615440893,-500.0,0.00022191,3]
[348547771,1736615440902,-791.48,0.00022191,3]
[348547773,1736615440911,-500.0,0.00022191,3]
[348547775,1736615440920,-500.0,0.00022191,3]
[348547777,1736615440930,-810.11,0.00022191,3]
[348547779,1736615440939,-500.0,0.00022191,3]
[348547782,1736615440949,-500.0,0.00022191,3]
[348547784,1736615440958,-1353.49,0.00022191,3]
[348547786,1736615440967,-500.0,0.00022191,3]
[348547788,1736615440976,-500.0,0.00022191,3]
[348547789,1736615440986,-848.34,0.00022191,3]
[348547791,1736615440995,-500.0,0.00022191,3]
[348547793,1736615441004,-2133.67,0.00022191,3]
[348547794,1736615441013,-726.1,0.00022191,3]
[348547795,1736615441022,-500.0,0.00022191,3]
[348547796,1736615441046,-500.0,0.00022191,3]
[348547797,1736615441059,-500.0,0.00022191,3]
[348547799,1736615441069,-1580.02,0.00022191,3]
[348547802,1736615441085,-868.93,0.00022191,3]
[348547804,1736615441095,-500.0,0.00022191,3]
[348547806,1736615441105,-414.18505106,0.00022191,3]
[348547808,1736615441115,-648.69,0.00022191,3]
[348547810,1736615441127,-800.16,0.00022191,3]
[348547812,1736615441137,-817.12,0.00022191,3]
[348547814,1736615441148,-1448.93,0.00022191,3]
[348547816,1736615441161,-21201.11,0.00022191,3]
[348547818,1736615441172,-5431.71,0.00022191,3]
[348547820,1736615441182,-4469.09,0.00022191,3]
[348547822,1736615441193,-679.14,0.00022191,3]
[348547824,1736615441203,-730.77,0.000222,2]
[348547826,1736615441213,-174.342134,0.00022225,2]
[348547828,1736615441223,-500.0,0.00022237,2]
[348547830,1736615441233,-295.41286931,0.00022237,2]
[348547833,1736615441244,-5351.0,0.00022256,2]
[348547835,1736615441254,-1238.93359241,0.00022306,2]
[348547837,1736615441264,-1200.0,0.00022403,2]
[348547839,1736615441274,-4081.38,0.00022465,3]
[348547841,1736615441286,-500.0,0.00022465,3]
[348547843,1736615441296,-500.0,0.00022465,3]
[348547845,1736615441306,-575.62,0.00022465,3]
[348547847,1736615441316,-500.0,0.00022465,3]
[348547849,1736615441326,-500.0,0.00022465,3]
[348547851,1736615441336,-500.0,0.00022465,3]
[348547853,1736615441345,-702.77,0.00022465,3]
[348547855,1736615441357,-500.0,0.00022465,3]
[348547857,1736615441366,-500.0,0.00022465,3]
[348547859,1736615441376,-879.45,0.00022465,3]
[348547861,1736615441386,-500.0,0.00022465,3]
[348547863,1736615441398,-500.0,0.00022465,3]
[348547865,1736615441408,-500.0,0.00022465,3]
[348547867,1736615441418,-500.0,0.00022465,3]
[348547869,1736615441427,-2719.84,0.00022465,3]
[348547871,1736615441437,-500.0,0.00022465,3]
[348547874,1736615441446,-500.0,0.00022465,3]
[348547875,1736615441455,-500.0,0.00022465,3]
[348547878,1736615441465,-500.0,0.00022465,3]
[348547880,1736615441474,-500.0,0.00022465,3]
[348547882,1736615441484,-500.0,0.00022465,3]
[348547884,1736615441494,-1426.15,0.00022465,3]
[348547886,1736615441503,-500.0,0.00022465,3]
[348547888,1736615441513,-878.75,0.00022465,3]
[348547890,1736615441522,-500.0,0.00022465,3]
[348547892,1736615441533,-994.37,0.00022465,3]
[348547894,1736615441543,-500.0,0.00022465,3]
[348547896,1736615441553,-808.11,0.00022465,3]
[348547898,1736615441562,-500.0,0.00022465,3]
[348547900,1736615441572,-500.0,0.00022465,3]
[348547902,1736615441582,-24012.04,0.00022465,2]
[348547904,1736615441592,-760.06,0.00022465,3]
[348547906,1736615441602,-2342.71,0.00022465,3]
[348547908,1736615441611,-500.0,0.00022465,3]
[348547910,1736615441621,-500.0,0.00022465,3]
[348547912,1736615441631,-500.0,0.00022465,3]
[348547914,1736615441641,-617.8,0.00022465,3]
[348547916,1736615441650,-500.0,0.00022465,3]
[348547918,1736615441660,-791.48,0.00022465,3]
[348547920,1736615441670,-500.0,0.00022465,3]
[348547922,1736615441679,-500.0,0.00022465,3]
[348547924,1736615441689,-810.11,0.00022465,3]
[348547926,1736615441698,-500.0,0.00022465,3]
[348547928,1736615441707,-1353.49,0.00022465,3]
[348547930,1736615441718,-848.34,0.00022465,3]
[348547932,1736615441727,-500.0,0.00022465,3]
[348547934,1736615441736,-2133.67,0.00022465,3]
[348547936,1736615441746,-726.1,0.00022465,3]
[348547938,1736615441755,-500.0,0.00022465,3]
[348547940,1736615441764,-500.0,0.00022465,3]
[348547942,1736615441773,-500.0,0.00022465,3]
[348547945,1736615441785,-1580.02,0.00022465,3]
[348547947,1736615441794,-868.93,0.00022465,3]
[348547949,1736615441803,-500.0,0.00022465,3]
[348547951,1736615441812,-648.69,0.00022465,3]
[348547953,1736615441822,-800.16,0.00022465,3]
[348547955,1736615441832,-817.12,0.00022465,3]
[348547957,1736615441841,-1448.93,0.00022465,3]
[348547959,1736615441851,-21201.11,0.00022465,3]
[348547961,1736615441860,-5431.71,0.00022465,3]
[348547963,1736615441869,-4469.09,0.00022465,3]
[348547965,1736615441878,-679.14,0.00022465,3]
[348547967,1736615441888,-2000.0,0.000225,2]
[348547969,1736615441897,-174.342134,0.00022552,2]
[348547971,1736615441906,-1238.93359241,0.00022605,2]
[348547973,1736615441915,-22130.50170683,0.00022639,3]
[348547975,1736615441925,-4081.38,0.00022739,3]
[348547977,1736615441934,-151.0,0.00022739,7]
[348547979,1736615441943,-500.0,0.00022739,3]
[348547981,1736615441952,-500.0,0.00022739,3]
[348547983,1736615441961,-575.62,0.00022739,3]
[348547985,1736615441970,-500.0,0.00022739,3]
[348547987,1736615441980,-500.0,0.00022739,3]
[348547989,1736615441989,-155.3635457,0.00022739,3]
[348547991,1736615441998,-702.77,0.00022739,3]
[348547993,1736615442007,-500.0,0.00022739,3]
[348547995,1736615442017,-500.0,0.00022739,3]
[348547997,1736615442026,-879.45,0.00022739,3]
[348547999,1736615442037,-500.0,0.00022739,3]
[348548001,1736615442046,-500.0,0.00022739,3]
[348548003,1736615442056,-500.0,0.00022739,3]
[348548005,1736615442065,-500.0,0.00022739,3]
[348548007,1736615442077,-2719.84,0.00022739,3]
[348548009,1736615442087,-500.0,0.00022739,3]
[348548011,1736615442097,-185.49561625,0.00022739,3]
[348548013,1736615442108,-500.0,0.00022739,3]
[348548015,1736615442119,-500.0,0.00022739,3]
[348548017,1736615442129,-500.0,0.00022739,3]
[348548019,1736615442138,-500.0,0.00022739,3]
[348548021,1736615442150,-1426.15,0.00022739,3]
[348548023,1736615442160,-500.0,0.00022739,3]
[348548025,1736615442171,-878.75,0.00022739,3]
[348548027,1736615442180,-500.0,0.00022739,3]
[348548029,1736615442190,-994.37,0.00022739,3]
[348548031,1736615442200,-500.0,0.00022739,3]
[348548033,1736615442210,-808.11,0.00022739,3]
[348548035,1736615442219,-500.0,0.00022739,3]
[348548037,1736615442228,-500.0,0.00022739,3]
[348548039,1736615442238,-24012.04,0.00022739,2]
[348548041,1736615442248,-760.06,0.00022739,3]
[348548043,1736615442257,-2342.71,0.00022739,3]
[348548045,1736615442267,-500.0,0.00022739,3]
[348548047,1736615442276,-500.0,0.00022739,3]
[348548049,1736615442287,-500.0,0.00022739,3]
[348548051,1736615442297,-617.8,0.00022739,3]
[348548053,1736615442306,-500.0,0.00022739,3]
[348548055,1736615442316,-791.48,0.00022739,3]
[348548057,1736615442325,-500.0,0.00022739,3]
[348548059,1736615442335,-500.0,0.00022739,3]
[348548061,1736615442345,-810.11,0.00022739,3]
[348548063,1736615442354,-500.0,0.00022739,3]
[348548065,1736615442364,-1353.49,0.00022739,3]
[348548067,1736615442373,-848.34,0.00022739,3]
[348548069,1736615442382,-500.0,0.00022739,3]
[348548071,1736615442392,-2133.67,0.00022739,3]
[348548074,1736615442401,-726.1,0.00022739,3]
[348548076,1736615442411,-500.0,0.00022739,3]
[348548078,1736615442421,-500.0,0.00022739,3]
[348548080,1736615442430,-500.0,0.00022739,3]
[348548082,1736615442439,-1580.02,0.00022739,3]
[348548084,1736615442449,-868.93,0.00022739,3]
[348548086,1736615442458,-500.0,0.00022739,3]
[348548088,1736615442467,-648.69,0.00022739,3]
[348548090,1736615442477,-800.16,0.00022739,3]
[348548092,1736615442486,-817.12,0.00022739,3]
[348548094,1736615442495,-1448.93,0.00022739,3]
[348548095,1736615442505,-11028.57617862,0.00022739,3]
[348548392,1736616053291,7118.67828257,0.0002,2]
[348548393,1736616099957,176.640913,0.00013973,2]
[348548395,1736616310106,718.28,0.00025,120]
[348548410,1736616562107,-345.76644611,0.000189,2]
[348548411,1736616562130,-300.0,0.00019899,2]
[348548412,1736616562150,-1849.06401282,0.000199,2]
[348548414,1736616573134,-1729.67598718,0.000199,2]
[348548415,1736616573155,-9246.50783804,0.000199,2]
[348548416,1736616574116,-284.99698306,0.000199,2]
[348548430,1736616636525,-4767.62312487,0.000198,2]
[348548431,1736616636535,-10479.45254887,0.0002,2]
[348548432,1736616636547,-456599.90032805,0.0002,2]
[348548433,1736616636585,-338608.20861115,0.0002,2]
[348548434,1736616636597,-3958.749372,0.0002,2]
[348549350,1736616645805,-1598.41549481,0.0002,2]
[348552101,1736617148431,185.33605,0.00013973,2]
[348552103,1736617451771,160.0,0.00016438,90]
[348552104,1736617554126,-398.05670217,0.000189,2]
[348552105,1736617554150,-157.29294818,0.00019,2]
[348552106,1736617751121,-215.0940407,0.000189,2]
[348552107,1736617761142,-50.27709408,0.000189,2]
[348552108,1736617761164,-166.2488228,0.00020447,2]
[348552119,1736617832311,-19.0872272,0.00020447,2]
[348552121,1736617832321,-239.88174,0.00020891,2]